bitfinex/quotes_ETHUSD_20260125
["timestamp","ask_amount","ask_price","bid_price","bid_amount"]
[1769335486250,0.001,2936.5,2936.1,3.75880186]
[1769335486554,0.001,2936.5,2936.2,4.34279342]
[1769335490547,0.001,2936.5,2936.0,1.22963671]
[1769335490846,0.001,2936.5,2935.9,0.8515079]
[1769335490847,0.001,2936.5,2935.9,4.61030976]
[1769335492438,0.001,2936.5,2935.9,4.64437086]
[1769335496060,0.001,2936.5,2935.9,0.85152194]
[1769335497342,0.001,2936.5,2935.8,3.4061935]
[1769335497649,0.001,2936.5,2935.8,7.16499536]
[1769335497837,0.001,2936.5,2935.9,0.90725443]
[1769335498356,0.002,2936.3,2935.9,0.90725443]
[1769335500657,0.002,2936.3,2935.9,1.75876819]
[1769335500976,0.002,2936.3,2935.9,0.90725443]
[1769335501852,0.002,2936.3,2935.6,4.61041369]
[1769335502231,0.002,2936.3,2935.7,0.85158535]
[1769335502437,0.002,2936.3,2935.6,4.6103993]
[1769335502933,0.002,2936.3,2935.6,0.85159744]
[1769335503636,3.7828694,2936.3,2935.5,0.85362678]
[1769335503824,3.7828694,2936.3,2935.5,2.40141054]
[1769335506170,3.7828694,2936.3,2935.5,6.19790545]
[1769335509629,0.001,2936.1,2935.5,6.19790545]
[1769335514667,1.86917228,2936.3,2935.5,6.19790545]
[1769335516467,0.001,2936.5,2935.6,3.51654074]
[1769335516648,0.001,2936.5,2935.7,4.10833587]
[1769335518450,0.001,2936.5,2935.8,4.36809738]
[1769335519072,0.001,2936.5,2935.9,0.01821665]
[1769335519274,0.001,2936.5,2936.0,3.51654074]
[1769335519475,0.001,2936.5,2936.1,3.53499578]
[1769335519774,0.001,2936.5,2936.2,0.70832746]
[1769335520638,0.001,2936.5,2936.2,4.2248682]
[1769335521377,0.001,2936.3,2936.2,4.2248682]
[1769335521558,3.48216526,2937.0,2936.2,4.2248682]
[1769335526380,0.002,2937.1,2936.2,5.07630876]
[1769335526551,0.002,2937.1,2936.3,0.50763088]
[1769335528175,0.002,2937.1,2936.3,4.02417162]
[1769335529266,0.002,2937.1,2936.4,3.51654074]
[1769335530275,0.002,2937.1,2936.4,4.36792072]
[1769335531774,0.002,2937.1,2936.4,4.39717983]
[1769335531976,0.002,2937.1,2936.5,0.84530895]
[1769335532173,0.002,2937.1,2936.5,1.69663803]
[1769335532347,0.002,2937.1,2936.6,3.51654074]
[1769335533258,0.002,2937.1,2936.7,3.75169398]
[1769335533979,0.002,2936.9,2936.7,3.75169398]
[1769335534175,0.002,2937.3,2936.8,0.72999728]
[1769335535197,0.002,2937.3,2936.8,4.48169126]
[1769335535502,0.002,2937.3,2936.8,5.33295249]
[1769335535671,0.002,2937.3,2936.8,5.3329509]
[1769335536075,0.002,2937.3,2936.9,3.75169398]
[1769335536279,0.002,2937.3,2937.0,0.53329509]
[1769335542176,0.002,2937.3,2936.8,1.58124255]
[1769335545564,0.002,2937.3,2937.0,0.001]
[1769335545765,0.002,2937.1,2937.0,0.001]
[1769335548513,0.002,2937.4,2937.0,0.001]
[1769335549097,0.00069865,2937.4,2937.0,0.001]
[1769335549293,0.00069865,2937.4,2937.1,0.73009728]
[1769335549899,3.76152755,2937.4,2937.0,0.001]
[1769335552766,0.00069865,2937.4,2937.0,0.001]
[1769335554707,0.002,2937.5,2937.0,7.30097282]
[1769335557288,3.7628289,2937.5,2937.0,0.001]
[1769335557519,4.13951179,2937.5,2937.2,0.001]
[1769335564327,0.713,2937.4,2937.2,0.001]
[1769335564530,3.63678999,2937.3,2937.2,0.001]
[1769335569414,0.713,2937.4,2937.2,0.001]
[1769335584258,0.7122,2937.4,2937.2,0.001]
[1769335591477,0.002,2937.5,2937.2,0.001]
[1769335591765,0.002,2937.5,2937.2,3.53407912]
[1769335591965,0.002,2937.5,2937.2,3.88758703]
[1769335593965,0.002,2937.5,2937.4,0.001]
[1769335609369,0.002,2937.5,2937.2,0.001]
[1769335614305,3.70469486,2937.5,2937.2,0.001]
[1769335617006,0.002,2937.5,2937.4,0.001]
[1769335617205,0.7274789,2937.5,2937.2,0.001]
[1769335621550,0.7274789,2937.5,2937.0,0.001]
[1769335623624,4.37006507,2937.5,2937.0,0.001]
[1769335629005,4.37006507,2937.5,2937.2,0.001]
[1769335629226,4.37006507,2937.5,2937.0,0.001]
[1769335629532,0.43720651,2937.4,2937.0,0.001]
[1769335630027,3.64258617,2937.3,2936.4,3.62708704]
[1769335638941,7.19028991,2937.3,2936.4,3.62708704]
[1769335640946,7.19028991,2937.3,2936.6,0.001]
[1769335641125,0.76274964,2937.2,2936.6,0.001]
[1769335641326,0.713,2937.1,2936.6,0.001]
[1769335653353,0.715,2937.1,2936.6,0.001]
[1769335656754,3.64458617,2937.3,2936.6,0.001]
[1769335656755,0.002,2937.3,2936.7,3.75506442]
[1769335656941,0.002,2937.3,2936.9,3.75506442]
[1769335657151,0.715,2937.5,2936.9,3.75506442]
[1769335657625,0.70501468,2937.5,2936.8,0.37560644]
[1769335657823,0.70501468,2937.5,2936.9,3.75506442]
[1769335658256,0.002,2937.6,2936.9,3.75506442]
[1769335659169,0.002,2937.6,2936.9,4.60629799]
[1769335659365,0.002,2937.6,2936.9,3.75506442]
[1769335659877,0.002,2937.6,2936.9,4.6062975]
[1769335660177,0.002,2937.6,2937.1,3.75506442]
[1769335664772,0.002,2937.6,2937.1,4.60623564]
[1769335668086,0.002,2937.6,2937.1,4.60624002]
[1769335675015,0.002,2937.6,2937.0,0.46062975]
[1769335675212,0.002,2937.6,2937.0,4.21569417]
[1769335675380,0.002,2937.6,2937.1,0.51009664]
[1769335676912,0.002,2937.6,2937.3,0.001]
[1769335680895,0.002,2938.3,2937.4,3.75506442]
[1769335681587,0.002,2938.3,2937.4,4.60615712]
[1769335681931,0.002,2938.3,2937.4,4.60614889]
[1769335682217,0.002,2938.3,2937.5,0.46071489]
[1769335682394,3.49259119,2938.3,2937.5,0.46071489]
[1769335688497,0.002,2938.1,2937.5,0.46071489]
[1769335692727,0.002,2938.1,2937.5,4.0427952]
[1769335700442,0.002,2938.1,2937.7,0.001]
[1769335710667,0.002,2938.1,2937.7,0.40537952]
[1769335712029,0.002,2937.9,2937.7,0.40537952]
[1769335715661,0.002,2937.9,2937.7,0.001]
[1769335719836,0.002,2938.1,2937.7,3.45054556]
[1769335720444,0.002,2938.1,2937.7,4.30153904]
[1769335721260,0.002,2938.1,2937.8,3.41550533]
[1769335724576,0.002,2938.1,2937.9,0.001]
[1769335726843,0.002,2938.1,2937.9,0.03503791]
[1769335727171,0.002,2938.1,2937.9,0.46529242]
[1769335728276,0.002,2938.1,2937.9,0.43125451]
[1769335732196,0.002,2938.1,2937.9,0.001]
[1769335742288,3.51674004,2938.1,2937.7,0.001]
[1769335743203,0.002,2938.1,2937.7,0.001]
[1769335743377,0.002,2938.1,2937.7,3.11978908]
[1769335743809,0.002,2938.1,2937.8,0.03403907]
[1769335745299,0.002,2938.1,2937.7,3.11978908]
[1769335745803,0.002,2938.1,2937.8,0.03403907]
[1769335748535,0.002,2937.9,2937.8,0.03403907]
[1769335748705,0.002,2938.1,2937.8,0.03403907]
[1769335754038,0.002,2938.1,2937.7,4.70829421]
[1769335754542,0.002,2938.1,2937.7,3.85729243]
[1769335754740,0.002,2938.1,2937.8,0.47083061]
[1769335759924,0.002,2937.9,2937.8,0.47083061]
[1769335760125,0.002,2938.1,2937.8,0.47083061]
[1769335762858,0.002,2938.1,2937.8,1.32180053]
[1769335763062,0.002,2938.1,2937.8,0.47083061]
[1769335763366,0.002,2938.1,2937.9,0.45069074]
[1769335768069,0.002,2938.1,2937.7,0.85200575]
[1769335768676,0.002,2938.1,2937.7,0.001]
[1769335770831,0.002,2938.1,2937.7,3.18508655]
[1769335771646,0.002,2937.9,2937.7,3.18508655]
[1769335771846,0.002,2938.1,2937.7,3.18508655]
[1769335772054,0.002,2938.1,2937.8,0.40612509]
[1769335774338,0.002,2938.1,2937.8,1.2570959]
[1769335774837,0.002,2938.3,2937.8,1.2570959]
[1769335775043,2.9449961,2938.5,2937.8,1.2570959]
[1769335776237,2.91594925,2938.7,2937.8,3.95567634]
[1769335776438,2.91594925,2938.7,2937.9,0.73606881]
[1769335781582,2.91594925,2938.7,2937.8,0.40612509]
[1769335781979,2.91594925,2938.7,2937.8,1.25709713]
[1769335782170,2.91594925,2938.7,2937.8,0.40612509]
[1769335782689,2.91594925,2938.7,2937.8,1.25709859]
[1769335783180,2.91594925,2938.7,2938.0,0.001]
[1769335783383,0.002,2938.5,2938.0,0.001]
[1769335783577,0.002,2938.5,2938.0,0.3966679]
[1769335791507,2.91394925,2938.9,2938.0,3.09524834]
[1769335791706,2.91394925,2939.2,2938.3,3.54357277]
[1769335791889,2.91394925,2939.2,2938.0,1.24755866]
[1769335792095,2.91394925,2939.0,2938.0,1.24758265]
[1769335792277,2.91394925,2939.0,2938.0,0.3966679]
[1769335792480,2.91394925,2938.7,2938.0,0.001]
[1769335792686,2.91394925,2938.7,2937.7,0.001]
[1769335795798,2.91394925,2938.7,2937.9,0.001]
[1769335796298,2.91594925,2938.5,2937.9,0.001]
[1769335796482,3.20774417,2938.5,2937.9,0.001]
[1769335798499,2.91594925,2938.5,2937.9,0.001]
[1769335798682,0.002,2938.5,2937.9,0.001]
[1769335798886,0.002,2938.5,2937.9,2.69958044]
[1769335802104,2.91594925,2938.5,2937.9,0.001]
[1769335802306,2.91394925,2938.4,2937.7,0.001]
[1769335802504,2.91394925,2938.4,2937.3,0.001]
[1769335802505,3.20554418,2938.4,2937.3,0.001]
[1769335802703,3.20554418,2938.4,2937.3,2.69958044]
[1769335803482,0.002,2938.5,2937.3,2.69958044]
[1769335804117,2.45490229,2938.5,2937.3,2.69958044]
[1769335804287,2.45490229,2938.5,2937.4,0.8510928]
[1769335804609,2.45490229,2938.5,2937.5,2.37588081]
[1769335806613,2.45490229,2938.5,2937.6,0.85103485]
[1769335806794,0.24549023,2938.4,2937.6,0.85103485]
[1769335807714,2.45290229,2938.4,2937.6,0.85103485]
[1769335808513,2.45290229,2938.4,2937.7,0.001]
[1769335808906,0.002,2938.3,2937.7,0.001]
[1769335811325,0.002,2938.3,2937.7,0.03504009]
[1769335812205,0.002,2938.3,2937.7,2.4109209]
[1769335812534,0.002,2938.3,2937.8,0.32619557]
[1769335812843,0.002,2938.3,2937.9,0.03403777]
[1769335813827,0.002,2938.3,2937.8,0.32619557]
[1769335814136,0.713,2938.9,2937.8,0.32619557]
[1769335814137,1.30748396,2940.2,2938.5,2.1667625]
[1769335814333,1.6328853,2940.6,2939.4,2.1627625]
[1769335814501,1.6328853,2940.6,2939.5,0.57063353]
[1769335814833,1.6328853,2940.6,2939.6,1.02073973]
[1769335815202,1.4828853,2940.6,2939.4,2.1627625]
[1769335815549,1.4828853,2940.6,2939.4,3.18354738]
[1769335816116,0.85007426,2941.0,2939.2,2.1627625]
[1769335816117,1.46236858,2940.3,2939.2,2.1627625]
[1769335816419,1.44268461,2940.0,2939.2,2.1627625]
[1769335817209,1.42318487,2940.3,2939.2,2.1627625]
[1769335817413,2.868628,2940.5,2939.3,2.1627625]
[1769335817716,1.85236616,2940.4,2939.3,2.1627625]
[1769335818027,1.42318487,2940.4,2939.3,2.1627625]
[1769335820322,1.2455443,2940.4,2939.3,2.1627625]
[1769335820719,0.002,2939.8,2939.3,2.1627625]
[1769335821523,0.002,2939.8,2938.8,0.85067024]
[1769335821709,0.002,2939.8,2939.0,2.1627625]
[1769335825856,0.35430423,2939.7,2939.0,2.1627625]
[1769335826056,0.35430423,2939.7,2938.8,2.1627625]
[1769335830450,0.35430423,2939.7,2938.3,2.1627625]
[1769335832668,0.35430423,2939.7,2938.5,2.1627625]
[1769335832970,0.35430423,2939.7,2938.7,2.1627625]
[1769335833268,0.002,2939.8,2938.7,2.1627625]
[1769335833647,0.85240978,2939.8,2938.7,2.1627625]
[1769335836342,0.002,2939.8,2938.7,2.1627625]
[1769335839656,3.5410423,2939.6,2938.7,2.1627625]
[1769335844277,3.5410423,2939.6,2938.9,0.001]
[1769335844476,0.44663802,2939.5,2938.9,0.001]
[1769335846652,1.29712494,2939.5,2938.9,0.001]
[1769335846883,0.44663802,2939.5,2938.9,0.001]
[1769335849481,0.52153419,2939.5,2938.9,0.001]
[1769335850697,0.52153419,2939.5,2938.9,1.69927192]
[1769335850871,0.40625765,2939.4,2938.9,1.69927192]
[1769335855397,0.713,2939.6,2938.9,1.69927192]
[1769335855761,0.713,2939.6,2939.2,1.69827192]
[1769335857299,0.715,2939.8,2939.2,1.69827192]
[1769335860069,0.002,2939.8,2939.2,1.69827192]
[1769335863615,0.002,2939.8,2939.2,1.66427192]
[1769335878509,0.002,2939.6,2939.2,1.66427192]
[1769335890345,0.002,2939.4,2939.2,1.66427192]
[1769335912569,0.002,2939.4,2939.2,1.59116233]
[1769335923656,0.002,2939.4,2939.3,1.67873417]
[1769335924074,0.002,2939.4,2939.3,1.64471712]
[1769335927305,0.002,2939.6,2939.2,1.64471712]
[1769335929114,0.002,2939.6,2939.2,1.67873998]
[1769335930604,0.002,2939.6,2939.2,1.64471712]
[1769335938613,0.002,2939.6,2939.4,0.001]
[1769335939822,0.002,2939.6,2939.4,1.64571712]
[1769335941891,0.002,2939.8,2939.5,1.64371712]
[1769335948725,0.002,2939.8,2939.4,0.001]
[1769335949408,0.002,2939.8,2939.4,1.64471712]
[1769335949906,0.002,2939.8,2939.4,0.001]
[1769335950628,0.002,2939.8,2939.6,0.001]
[1769335956632,0.002,2939.8,2939.4,0.001]
[1769335962041,0.002,2939.8,2939.4,1.64471712]
[1769335962340,0.002,2939.8,2939.6,0.001]
[1769335964252,0.002,2939.8,2939.4,1.64471712]
[1769335974455,0.002,2939.8,2939.6,0.001]
[1769335974820,0.002,2939.8,2939.6,1.64471712]
[1769335995313,0.002,2940.6,2939.8,1.38108057]
[1769335995966,3.54046042,2940.4,2939.8,1.38108057]
[1769335996278,3.54046042,2940.1,2939.4,0.001]
[1769335996460,3.54046042,2939.8,2939.4,0.001]
[1769335997763,3.54046042,2939.8,2939.6,0.001]
[1769335998582,3.54246042,2939.8,2939.6,0.001]
[1769335998986,3.54246042,2939.8,2939.4,0.001]
[1769335999984,0.002,2939.8,2939.4,0.001]
[1769336000186,0.002,2939.8,2939.4,0.99831192]
[1769336004391,0.002,2939.8,2939.6,0.99731192]
[1769336004592,0.35404604,2940.3,2939.5,0.99731192]
[1769336004764,0.38945065,2940.2,2939.5,0.99731192]
[1769336005462,3.54046042,2940.4,2939.5,0.99731192]
[1769336007287,0.002,2940.6,2939.7,0.99731192]
[1769336008895,3.54170308,2940.6,2939.7,0.99731192]
[1769336010499,0.002,2940.4,2939.7,0.99731192]
[1769336022169,0.002,2940.2,2939.7,0.99731192]
[1769336035426,0.002,2940.0,2939.7,0.99731192]
[1769336041231,0.002,2940.0,2939.8,1.06747477]
[1769336042330,0.002,2940.0,2939.8,0.13610001]
[1769336044239,0.002,2940.0,2939.8,1.13302629]
[1769336059662,0.002,2939.8,2939.4,0.001]
[1769336059847,0.002,2939.8,2939.1,0.001]
[1769336059848,0.41846225,2939.8,2939.1,0.001]
[1769336060733,3.53970308,2939.7,2939.1,0.001]
[1769336061046,4.16062251,2939.7,2939.1,0.001]
[1769336066841,4.16062251,2939.7,2938.9,0.92370252]
[1769336067466,0.62091943,2939.6,2938.9,0.001]
[1769336067772,0.41606225,2939.5,2938.9,0.001]
[1769336071764,0.41606225,2939.5,2939.1,0.001]
[1769336073567,3.54182463,2939.4,2938.5,0.03503096]
[1769336073750,4.21637094,2939.4,2938.5,0.99019681]
[1769336077673,0.67654631,2939.6,2938.5,0.99019681]
[1769336077852,0.002,2939.6,2938.5,0.99019681]
[1769336079882,3.54182463,2939.4,2938.5,0.99019681]
[1769336080083,0.35418246,2939.3,2938.5,0.99019681]
[1769336083385,0.35418246,2939.3,2938.7,0.001]
[1769336084986,0.35418246,2939.3,2938.7,0.99019681]
[1769336089157,0.35418246,2939.3,2938.7,0.98679163]
[1769336095411,0.002,2939.1,2938.7,0.98679163]
[1769336098100,0.002,2939.1,2938.8,0.03402749]
[1769336098693,0.002,2939.1,2938.7,0.98679163]
[1769336101103,0.002,2939.1,2938.9,0.98919681]
[1769336101666,0.002,2939.3,2938.6,0.98919681]
[1769336101867,0.002,2939.4,2938.8,0.98919681]
[1769336102066,0.002,2939.6,2939.0,0.98919681]
[1769336102585,0.00059783,2939.8,2938.7,0.98919681]
[1769336102797,0.00059783,2939.8,2938.9,0.98919681]
[1769336103091,0.00059783,2939.8,2939.0,0.03402517]
[1769336103291,0.00059783,2939.8,2939.1,0.92495575]
[1769336107413,0.00059783,2939.8,2939.1,0.95897789]
[1769336108797,0.002,2939.6,2939.1,0.95897789]
[1769336109273,0.002,2939.6,2939.2,0.92495575]
[1769336109481,0.002,2939.6,2939.4,0.92495575]
[1769336113532,0.002,2939.6,2939.3,0.21497789]
[1769336113700,0.002,2939.6,2939.1,0.92495575]
[1769336120200,0.002,2939.6,2939.3,0.001]
[1769336120403,0.002,2939.6,2939.3,0.98792547]
[1769336120618,0.002,2939.6,2939.3,0.001]
[1769336123825,0.002,2939.6,2939.3,0.98792547]
[1769336126025,0.002,2939.6,2939.3,1.17518026]
[1769336126803,0.00059783,2939.8,2939.4,1.02094601]
[1769336129906,0.00059783,2939.8,2939.5,0.98692547]
[1769336131947,0.00059783,2939.8,2939.5,0.98792547]
[1769336135303,0.68554932,2939.8,2939.3,0.001]
[1769336135505,0.42253721,2939.7,2939.3,0.001]
[1769336142618,0.68495149,2939.5,2938.6,0.9668034]
[1769336143936,0.68695149,2939.5,2938.6,0.9668034]
[1769336145126,0.68695149,2939.5,2938.7,1.00083205]
[1769336145435,0.42267743,2939.4,2938.7,1.00083205]
[1769336146321,0.42267743,2939.4,2938.7,0.9668034]
[1769336146565,0.68695149,2939.5,2938.7,0.9668034]
[1769336147116,0.002,2939.7,2939.1,0.9668034]
[1769336147317,0.002,2939.7,2939.3,0.9668034]
[1769336147565,0.002,2939.7,2939.4,0.03402054]
[1769336147918,0.002,2939.7,2939.3,0.9668034]
[1769336156358,0.002,2939.7,2939.5,0.001]
[1769336166678,0.00059783,2939.8,2939.6,0.94132917]
[1769336168281,0.002,2939.7,2939.6,0.94132917]
[1769336175875,0.002,2939.7,2939.6,1.12401538]
[1769336185655,0.002,2939.7,2939.6,0.18268621]
[1769336192994,0.002,2939.7,2939.6,1.13699784]
[1769336193392,0.00059783,2939.8,2939.7,0.95431163]
[1769336193595,0.002,2940.0,2939.8,0.95431163]
[1769336193904,0.002,2940.0,2939.9,0.03401476]
[1769336194281,0.002,2940.0,2939.9,0.1838753]
[1769336195862,0.002,2940.0,2939.6,0.98832986]
[1769336197900,0.002,2940.0,2939.6,0.03401823]
[1769336198476,0.002,2940.0,2939.5,0.03501939]
[1769336203997,0.002,2940.0,2939.7,0.001]
[1769336204315,0.002,2939.8,2939.7,0.001]
[1769336208823,0.002,2939.8,2939.7,0.18508147]
[1769336209031,0.002,2939.8,2939.7,0.21909854]
[1769336214591,0.002,2939.8,2939.7,0.9893287]
[1769336217624,0.002,2939.8,2939.7,0.03501707]
[1769336217942,0.002,2939.8,2939.7,0.001]
[1769336218696,0.002,2939.8,2939.5,0.001]
[1769336222354,0.68995149,2939.8,2939.2,3.87]
[1769336222914,0.68795149,2939.7,2938.6,0.99533821]
[1769336223114,0.68795149,2939.5,2938.6,1.02936802]
[1769336223320,0.68795149,2939.5,2938.6,0.99533821]
[1769336227254,0.68795149,2939.5,2938.8,0.001]
[1769336237751,3.53959344,2939.3,2938.8,0.001]
[1769336238079,0.42275449,2939.2,2938.8,0.001]
[1769336240372,0.68795149,2939.4,2938.8,0.001]
[1769336243883,0.42295449,2939.6,2938.8,0.001]
[1769336243884,1.11090598,2939.6,2938.8,0.001]
[1769336244188,1.11090598,2939.6,2938.8,0.90930779]
[1769336249099,0.68795149,2939.5,2938.8,0.001]
[1769336249799,0.42295449,2939.6,2938.8,0.001]
[1769336249992,1.11090598,2939.6,2938.8,0.001]
[1769336250379,3.53959344,2939.5,2938.8,0.001]
[1769336250584,0.46504994,2939.4,2938.8,0.001]
[1769336250901,1.11090598,2939.6,2938.8,0.001]
[1769336251275,1.11090598,2939.6,2939.0,0.001]
[1769336252202,0.42295449,2939.6,2939.0,0.001]
[1769336252402,0.68795149,2939.5,2939.0,0.001]
[1769336253707,0.68795149,2939.4,2938.8,0.001]
[1769336253876,1.1181956,2939.3,2938.8,0.001]
[1769336255007,4.66119436,2939.3,2938.8,0.001]
[1769336256209,4.66119436,2939.3,2938.5,0.97651661]
[1769336257204,4.66119436,2939.3,2938.5,0.001]
[1769336261211,4.66119436,2939.3,2938.5,0.97651661]
[1769336261413,0.46611944,2939.2,2938.5,0.97651661]
[1769336262814,0.46611944,2939.2,2938.7,0.001]
[1769336263112,0.002,2939.1,2938.7,0.001]
[1769336274926,0.002,2938.9,2938.7,0.001]
[1769336294426,0.002,2938.9,2938.7,0.95411783]
[1769336302031,0.002,2938.9,2938.7,0.001]
[1769336302366,0.002,2938.9,2938.5,0.001]
[1769336304642,3.54299876,2938.7,2937.9,0.95311783]
[1769336304845,3.54299876,2938.7,2937.9,1.1662486]
[1769336305540,3.54299876,2938.7,2937.9,0.95311783]
[1769336307067,0.002,2938.9,2937.9,0.95311783]
[1769336311304,0.002,2938.9,2938.1,0.95411783]
[1769336311584,0.002,2938.7,2938.1,0.95411783]
[1769336316009,0.002,2938.7,2938.1,0.95071566]
[1769336321205,0.002,2938.7,2937.7,0.88602424]
[1769336321374,0.002,2938.7,2937.8,0.92222101]
[1769336321703,0.002,2938.7,2937.9,0.92222101]
[1769336323608,0.002,2938.5,2937.9,0.92222101]
[1769336326904,0.002,2938.5,2937.9,0.95625892]
[1769336327226,0.002,2938.5,2938.0,0.92222101]
[1769336327409,0.002,2938.5,2938.0,1.10294119]
[1769336329215,0.00059714,2938.7,2938.1,0.92222101]
[1769336334621,0.00059714,2938.7,2938.0,0.18072018]
[1769336334916,4.23393172,2938.5,2937.7,0.92322101]
[1769336335121,0.42339317,2938.4,2937.7,0.92322101]
[1769336335322,0.69035366,2938.5,2938.3,0.001]
[1769336335487,0.69035366,2938.5,2937.7,0.92322101]
[1769336342193,4.23393172,2938.5,2937.7,0.92322101]
[1769336342393,4.23393172,2938.5,2937.7,0.001]
[1769336342604,0.69035366,2938.5,2937.7,0.001]
[1769336342810,4.23393172,2938.5,2937.7,0.001]
[1769336343110,1.11374683,2938.4,2937.7,0.001]
[1769336345830,1.11374683,2938.4,2937.5,0.92222101]
[1769336345831,0.69035366,2938.1,2937.3,0.001]
[1769336346002,0.69035366,2938.1,2937.3,0.96292268]
[1769336346208,3.54357806,2938.2,2937.3,0.96292268]
[1769336346427,0.49469317,2938.1,2937.3,0.96292268]
[1769336347595,0.49469317,2938.1,2937.5,0.001]
[1769336352415,0.69035366,2938.2,2937.5,0.001]
[1769336352933,1.72717251,2938.4,2937.5,0.96292268]
[1769336353240,0.713,2938.3,2937.5,0.96292268]
[1769336355535,1.40335366,2938.3,2937.5,0.96292268]
[1769336358835,0.002,2938.1,2937.5,0.96292268]
[1769336370464,0.002,2938.1,2937.7,0.96092542]
[1769336370662,0.002,2938.3,2937.6,0.03404139]
[1769336370663,0.002,2938.3,2937.8,0.96092542]
[1769336372362,0.002,2937.9,2937.8,0.96092542]
[1769336372730,0.002,2938.1,2937.8,0.93548958]
[1769336376343,1.54334036,2938.8,2937.8,0.93548958]
[1769336377162,0.69435366,2938.7,2937.8,0.93548958]
[1769336377362,0.76924983,2938.7,2937.7,0.001]
[1769336377733,0.76924983,2938.7,2937.7,0.9869969]
[1769336378133,0.94124666,2938.6,2937.7,0.9869969]
[1769336383648,0.76924983,2938.5,2937.7,0.001]
[1769336384879,0.76924983,2938.5,2937.9,0.001]
[1769336385369,0.76924983,2938.5,2937.7,0.001]
[1769336392195,0.07489617,2938.5,2937.7,0.9869969]
[1769336392399,0.48529568,2938.4,2937.7,0.9869969]
[1769336392760,0.48529568,2938.4,2937.7,0.001]
[1769336393060,0.48529568,2938.4,2937.7,0.9869969]
[1769336395258,0.713,2938.3,2937.7,0.9869969]
[1769336396691,0.713,2938.3,2937.9,0.001]
[1769336396891,0.715,2938.3,2937.9,0.001]
[1769336404599,0.002,2938.3,2937.9,0.93256721]
[1769336410597,0.002,2938.3,2937.9,0.001]
[1769336411295,0.002,2938.3,2937.9,0.93256721]
[1769336415292,0.002,2938.3,2937.9,0.001]
[1769336419814,0.002,2938.3,2937.9,0.94458713]
[1769336420024,0.002,2938.1,2937.9,0.94458713]
[1769336421624,0.002,2938.1,2937.9,0.001]
[1769336423227,0.002,2938.3,2938.0,0.94358713]
[1769336427227,0.002,2938.5,2938.1,0.94358713]
[1769336432026,0.002,2938.3,2938.1,0.94358713]
[1769336436647,0.002,2938.9,2938.1,0.96402056]
[1769336436851,0.002,2938.9,2938.2,0.96402056]
[1769336437372,0.002,2938.9,2938.4,0.96402056]
[1769336443956,0.002,2938.7,2938.4,0.96402056]
[1769336444930,0.002,2938.7,2938.3,0.182491]
[1769336445624,0.002,2938.7,2938.3,0.001]
[1769336445832,0.002,2938.7,2938.3,0.96502056]
[1769336453965,0.002,2938.7,2938.4,0.99805268]
[1769336454137,0.002,2938.9,2938.4,0.96402056]
[1769336456263,0.002,2938.9,2938.5,0.96502056]
[1769336457167,0.002,2938.7,2938.5,0.96502056]
[1769336464175,0.002,2938.7,2938.6,0.18158193]
[1769336467982,0.002,2938.7,2938.6,1.08519838]
[1769336468650,0.002,2938.7,2938.6,0.90361645]
[1769336471096,0.002,2938.7,2938.5,0.001]
[1769336472883,0.002,2938.7,2938.5,0.90461645]
[1769336473783,0.002,2938.9,2938.5,0.90461645]
[1769336476886,0.002,2938.9,2938.5,1.75538569]
[1769336477088,0.002,2939.1,2938.6,1.13292807]
[1769336477406,0.002,2939.1,2938.6,1.09889826]
[1769336480100,0.002,2938.9,2938.6,1.09889826]
[1769336480486,0.002,2938.9,2938.6,0.17553857]
[1769336480688,0.002,2938.9,2938.5,0.001]
[1769336483292,0.002,2938.9,2938.5,0.92435969]
[1769336484709,0.002,2938.9,2938.6,0.92335969]
[1769336485310,0.002,2938.9,2938.5,0.001]
[1769336486311,0.002,2938.9,2938.5,0.85177375]
[1769336486610,0.002,2938.9,2938.6,0.18091656]
[1769336489344,0.002,2938.9,2938.7,4.46523799]
[1769336489612,0.002,2938.9,2938.6,0.18091656]
[1769336490118,0.002,2938.9,2938.5,0.001]
[1769336490119,0.91997027,2938.9,2938.5,0.001]
[1769336490706,0.002,2938.9,2938.5,0.001]
[1769336491611,0.002,2938.9,2938.7,0.001]
[1769336492015,0.002,2939.1,2938.7,0.92435969]
[1769336492316,0.002,2939.1,2938.8,0.03402749]
[1769336493711,0.002,2939.1,2938.7,0.92435969]
[1769336493906,0.002,2939.1,2938.7,1.10537428]
[1769336494712,0.002,2939.1,2938.8,0.92995047]
[1769336504427,0.002,2938.9,2938.8,0.92995047]
[1769336504617,0.002,2939.1,2938.8,0.92995047]
[1769336506233,0.002,2939.1,2938.8,1.78063205]
[1769336506433,0.002,2939.1,2938.9,0.19966753]
[1769336506631,0.002,2939.3,2938.9,0.19966753]
[1769336506806,0.002,2939.5,2939.0,0.96397564]
[1769336507746,0.002,2940.0,2939.0,0.96397564]
[1769336507930,0.002,2940.0,2939.1,0.92995047]
[1769336508105,0.92728416,2940.0,2939.2,0.18145942]
[1769336509350,0.92728416,2939.8,2938.9,4.62513646]
[1769336509533,0.92728416,2939.8,2938.9,1.08433272]
[1769336510134,0.92728416,2939.8,2939.0,0.85062073]
[1769336510639,0.002,2939.8,2939.1,0.92995047]
[1769336510842,0.002,2939.8,2939.1,0.96397449]
[1769336511011,0.002,2939.8,2939.3,0.92995047]
[1769336515240,0.002,2939.8,2939.2,4.5728078]
[1769336515241,0.002,2939.8,2939.2,0.18145952]
[1769336515941,0.002,2939.8,2939.5,0.001]
[1769336519350,0.002,2939.8,2939.5,0.93095047]
[1769336520529,0.002,2939.8,2939.5,0.001]